{"text_format":"1","workbook":"xlsx","n_sheets":4,"sheets":["CLASSIFICAÇÃO GERAL 2025","ago2025","set2025","out2025"],"not_rendered":{"charts":0,"images":2,"macros":1,"external_links":0,"defined_names":1,"comments":0,"pivot_tables":0},"unopened":[],"bounds":{"document_bytes":16777216,"sheet_cells":100000,"rows_first":2000,"rows_last":500,"rows_between":2000,"halvings":0,"cell_chars":16384,"cell_head_chars":4096},"cells_cut":0,"cells_raw":0,"read":"whole","date_system":"1900"}

{"sheet":"CLASSIFICAÇÃO GERAL 2025","index":0,"n_rows":103,"n_cols":5,"rows_kept":103,"cut":false,"hidden":false,"merged":[[0,0,0,4],[1,0,1,4]]}
["CLASSIFICAÇÃO GERAL ACPA – TEMPORADA 2025 QUARTA"]
["TRINCA-FERRO FIBRA","Pássaro","Proprietário","Origem","Pontos"]
["POSIÇÃO","NOME DO PÁSSARO","NOME DO PROPRIETÁRIO","ORIGEM (CIDADE)","PONTUAÇÃO"]
["1º","MARRETA","GILSON/GUSTAVO","S. DUMONT/TRÊS RIOS",{"$f":"28+30+30+23+28+24+24+22+23+28+17+17+26","v":320}]
["2º","VELOSTER","HENRIQUE JARDIM","ANTA",{"$f":"21+23+24+18+23+15+23+23+26+23+20+20+13","v":272}]
["3º","POPAYE","GILSON/GUSTAVO","S. DUMONT/TRÊS RIOS",{"$f":"22+26+21+21+28+15+20","v":153}]
["4º","TOBEBIM","NILTON GUGU","BEMPOSTA",{"$f":"28+30+26+30+21","v":135}]
["5º","SUPER","RODRIGO","PETRÓPOLIS",{"$f":"18+21+24+16+19+20","v":118}]
["6º","ZAP ZAP","HERLO","PARAÍBA DO SUL",{"$f":"14+15+21+22+23+18","v":113}]
["7º","ZEUS","RATINHO","VALENÇA",{"$f":"30+30+26","v":86}]
["8º","TOP","FAMÍLIA MINGAL","PARAÍBA DO SUL",{"$f":"23+24+30","v":77}]
["9º","CATEDRAL","GUSTAVO/GILSON","S. DO DESERTO/TRÊS RIOS",{"$f":"28+26+20","v":74}]
["10º","JHON WICK","IVERSON","TRÊS RIOS",{"$f":"22+18+20+14","v":74}]
["11º","ABSOLUTO","SOLDADO","NOVA IGUAÇU",{"$f":"30+22+21","v":73}]
["12º","TIROTEIO","DOUGLAS/CABRITO","JUIZ DE FORA/M. BARBOSA",{"$f":"24+26+21","v":71}]
["13º","SHOW DO MILHÃO","KAUAN","PATY DO ALFERES",{"$f":"22+22+23","v":67}]
["14º","VENENO","GILSON/GUSTAVO","S. DUMONT/TRÊS RIOS",{"$f":"20+17+14+13","v":64}]
["15º","DIFERENTE","SANDRINHO","TRÊS RIOS",{"$f":"19+16+13+15","v":63}]
["16º","SUSSURRO","CH/DOMINGOS","PARAÍBA DO SUL",{"$f":"19+21+20","v":60}]
["17º","GUERREIRO","CH FAMÍLIA MINGAL","PARAÍBA DO SUL",{"$f":"19+23+15","v":57}]
["18º","SUZUKI","CT ALPHA","PARAÍBA DO SUL",{"$f":"26+28","v":54}]
["19º","MULEKE","LEONARDO","PETRÓPOLIS",{"$f":"28+24","v":52}]
["20º","NOVATO","LUCIMAR/LUIZ HENRIQUE","TRÊS RIOS",{"$f":"22+26","v":48}]
["21º","SOBERANO","PAULINO","SAPUCAIA",{"$f":"28+20","v":48}]
["22º","GAVIÃO","JOSÉ PAULO","PARAÍBA DO SUL",{"$f":"19+24","v":43}]
["23º","GENGHIS KHAN","PABLO","ITAIPAVA",{"$f":"24+19","v":43}]
["24º","MAD MAX JR","LEANDRO MOURA","TRÊS RIOS",{"$f":"21+18","v":39}]
["25º","SINISTRO","ALEXANDRE","JUIZ DE FORA",{"$f":"20+18","v":38}]
["26º","BRUTO","RUAN BARRINHA","PARAÍBA DO SUL",{"$f":"20+16","v":36}]
["27º","JUMBO","ALEXANDRE","JUIZ DE FORA",{"$f":"17+17","v":34}]
["28º","WOLVERINE","MURILO","TRÊS RIOS",{"$f":"20+14","v":34}]
["29º","ASTRO","ALEXANDRE/ANA CARLA","SOUZA AGUIAR",30]
["30º","FIEL","MATHEUS/JÚLIO","PARAÍBA DO SUL",{"$f":"13+17","v":30}]
["31º","IMPÉRIO","SOLDADO","NOVA IGUAÇU",30]
["32º","MATRAQUINHA","RAFAEL","PARAÍBA DO SUL",30]
["33º","TEIMOSO","KAUAN","PATY DO ALFERES",30]
["34º","ULTRAGAS","GABRIEL","MAR DE ESPANHA",30]
["35º","CANGACEIRO","GABRIEL","PETRÓPOLIS",{"$f":"14+15","v":29}]
["36º","397","SÍLVIO LEAL","PETRÓPOLIS",28]
["37º","LEKE","GUSTAVO","PARAÍBA DO SUL",28]
["38º","MAITOGAI","EDILSON PAVÃO","PETRÓPOLIS",28]
["39º","PRECIOSO","FAMÍLIA HONORATO","PARAÍBA DO SUL",28]
["40º","ALBATROZ","GABRIEL","MAR DE ESPANHA",26]
["41º","GUARDIÃO","GABRIEL/ÍCARO","PARAÍBA DO SUL",26]
["42º","KRATOS","RICARDO/GUSTAVINHO/KAUE","ANTA",26]
["43º","PODEROSO CASTIGO","FELIPE","PATY DO ALFERES",26]
["44º","PERON","LEVI","TRÊS RIOS",24]
["45º","PORCO","RODRIGO/BRUNO","PETRÓPOLIS",24]
["46º","RACHA CUCA","FAMÍLIA MINGAL","PARAÍBA DO SUL",24]
["47º","ROCHA","LUCIMAR/LUIZ HENRIQUE","TRÊS RIOS",24]
["48º","METEORO","HARLEI","TRÊS RIOS",23]
["49º","PROBLEMA","EMERSON","ANTA",23]
["50º","ASTRO","KAUAN","PATY DO ALFERES",22]
["51º","ATREVIDO","JOSENILTON","PARAÍBA DO SUL",22]
["52º","DINO","AMILTON","JUIZ DE FORA",22]
["53º","ESTRELA","RAFAEL DIAS","PARAÍBA DO SUL",22]
["54º","KI SHOW","RODRIGO/RAFAEL","PETRÓPOLIS",22]
["55º","BOI BANDIDO","HENRIQUE","ANTA",21]
["56º","TADALAFILA","FELIPE CRECK","MIGUEL PEREIRA",21]
["57º","YRON","NICOLAS","PETRÓPOLIS",21]
["58º","URUTU REI","RICO","MIGUEL PEREIRA",20]
["59º","BOI","FAMÍLIA MINGAL","PARAÍBA DO SUL",19]
["60º","DIEGO","EULER","TRÊS RIOS",19]
["61º","FORASTEIRO","KLEBER","AREAL",19]
["62º","SEXTA-FEIRA","GILBERT","JUIZ DE FORA",19]
["63º","TALENTO","LOIRINHO","PARAÍBA DO SUL",19]
["64º","ZÉ CALANGO","RAFAEL TAVARES","PETRÓPOLIS",19]
["65º","BOPE","GILSON/GUSTAVO","S. DUMONT/TRÊS RIOS",18]
["66º","FINAL FELIZ","WELINGTON","PETRÓPOLIS",18]
["67º","ITACHI","IVERSON","TRÊS RIOS",18]
["68º","OURO BRANCO","FELIPE","TRÊS RIOS",18]
["69º","SUB ZERO","ANDRÉ","PARAÍBA DO SUL",18]
["70º","TRUCO","IGOR LIMA","TRÊS RIOS",18]
["71º","BIPOLAR","LUIZ CARLOS","MIGUEL PEREIRA",17]
["72º","CYCLOPE","RENATO","JUIZ DE FORA",17]
["73º","RAIO","LUCIMAR /LUIZ HENRIQUE","TRÊS RIOS",17]
["74º","SHITAI","GABRIEL/EDILSON","PETRÓPOLIS",17]
["75º","VENENO","JÚLIO","MIGUEL PEREIRA",17]
["76º","CONFUSÃO","CICINHO","PARAÍBA DO SUL",16]
["77º","ESTRELA","JOSÉ","TRÊS RIOS",16]
["78º","ET","MUTUM","JUIZ DE FORA",16]
["79º","MATADOR","ANDRÉ","PARAÍBA DO SUL",16]
["80º","PIVETE","SOLDADO","NOVA IGUAÇU",16]
["81º","ZANGADO","WELINGTON","PETRÓPOLIS",16]
["82º","ZÉ PORRADA","DENTINHO","PARAÍBA DO SUL",16]
["83º","DOPAMINA","RAPHAEL","MATIAS BARBOSA",15]
["84º","FÚRIA","KAUAN","PATY DO ALFERES",15]
["85º","SNIPER","GILSON/GUSTAVO","S. DUMONT/TRÊS RIOS",15]
["86º","CABULOSO","WATILA","JUIZ DE FORA",14]
["87º","MALIBU","PABLO","ITAIPAVA",14]
["88º","RAMBO","JHONATAS","PARAÍBA DO SUL",14]
["89º","JOIA RARA","RODRIGO/BRUNO","PETRÓPOLIS",13]
["90º","VISGO","KAUAN","PATY DO ALFERES",13]
["91º"]
["92º"]
["93º"]
["94º"]
["95º"]
["96º"]
["97º"]
["98º"]
["99º"]
["100º"]

{"sheet":"ago2025","index":1,"n_rows":22,"n_cols":27,"rows_kept":22,"cut":false,"hidden":false,"merged":[[0,0,0,5],[0,7,0,12],[0,14,0,19],[0,21,0,26]]}
["06/08/2025 (QUARTA-FEIRA)",null,null,null,null,null,null,"13/08/2025 (QUARTA-FEIRA)",null,null,null,null,null,null,"20/08/2025 (QUARTA-FEIRA)",null,null,null,null,null,null,"27/08/2025 (QUARTA-FEIRA)"]
["POS.","PÁSSARO","PROPRIETÁRIO","ORIGEM","CANTOS","PONTOS",null,"POS.","PÁSSARO","PROPRIETÁRIO","ORIGEM","CANTOS","PONTOS",null,"POS.","PÁSSARO","PROPRIETÁRIO","ORIGEM","CANTOS","PONTOS",null,"POS.","PÁSSARO","PROPRIETÁRIO","ORIGEM","CANTOS","PONTOS"]
["1º","IMPÉRIO","SOLDADO","NOVA IGUAÇU",156,30,null,"1º","MARRETA","SOLDADO","NOVA IGUAÇU",154,30,null,"1º","MARRETA","GILSON/GUSTAVO","S. DUMONT/TRÊS RIOS",173,30,null,"1º","TOBEBIM","NILTON","TRÊS RIOS",137,30]
["2º","MARRETA","SOLDADO","NOVA IGUAÇU",151,28,null,"2º","SOBERANO","PAULINO","SAPUCAIA",142,28,null,"2º","TOBEBIM","NILTON","BEMPOSTA",142,28,null,"2º","MULEKE","LEONARDO","PETRÓPOLIS",135,28]
["3º","GUARDIÃO","GABRIEL/ÍCARO","PARAÍBA DO SUL",116,26,null,"3º","PODEROSO CASTIGO","FELIPE","PATY DO ALFERES",119,26,null,"3º","SUZUKI","JOÃO PEDRO","PARAÍBA DO SUL",131,26,null,"3º","POPAYE","GILSON/GUSTAVO","S. DUMONT/TRÊS RIOS",125,26]
["4º","RACHA CUCA","FAMÍLIA MINGAL","PARAÍBA DO SUL",110,24,null,"4º","ROCHA","LUCIMAR/LUIZ HENRIQUE","TRÊS RIOS",104,24,null,"4º","VELOSTER","HENRIQUE JARDIM","ANTA",111,24,null,"4º","SUPER","RODRIGO","PETRÓPOLIS",122,24]
["5º","PROBLEMA","EMERSON","ANTA",110,23,null,"5º","VELOSTER","HENRIQUE","ANTA",96,23,null,"5º","TOP","FAMÍLIA MINGAL","PARAÍBA DO SUL",100,23,null,"5º","MARRETA","GILSON/GUSTAVO","S. DUMONT/TRÊS RIOS",119,23]
["6º","ESTRELA","RAFAEL DIAS","PARAÍBA DO SUL",109,22,null,"6º","JHON WICK","IVERSON","TRÊS RIOS",82,22,null,"6º","POPAYE","GILSON/GUSTAVO","S. DUMONT/TRÊS RIOS",98,22,null,"6º","ATREVIDO","JOSENILTON","PARAÍBA DO SUL",113,22]
["7º","VELOSTER","HENRIQUE","ANTA",104,21,null,"7º","BOI BANDIDO","HENRIQUE","ANTA",75,21,null,"7º","SUPER","RODRIGO","PETRÓPOLIS",94,21,null,"7º","SUSSURRO","DOMINGOS","PARAÍBA DO SUL",113,21]
["8º","URUTU REI","RICO","MIGUEL PEREIRA",88,20,null,"8º","VENENO","GILSON/GUSTAVO","S. DUMONT/TRÊS RIOS",70,20,null,"8º","SOBERANO","PAULINO","SAPUCAIA",94,20,null,"8º","WOLVERINE","MURILO","TRÊS RIOS",93,20]
["9º","SUSSURRO","CH/DOMINGOS","PARAÍBA DO SUL",67,19,null,"9º","CARAVELA","JONATAS","TRÊS RIOS",58,null,null,"9º","TALENTO","LOIRINHO","PARAÍBA DO SUL",94,19,null,"9º","DIEGO","EULER","TRÊS RIOS",91,19]
["10º","SUPER","RODRIGO","PETRÓPOLIS",62,18,null,"10º","PRIMEIRA VEZ","BINHA","PATY DO ALFERES",50,null,null,"10º","JHON WICK","IVERSON","TRÊS RIOS",91,18,null,"10º","VELOSTER","HENRIQUE","ANTA",81,18]
["11º","VENENO","JÚLIO","MIGUEL PEREIRA",60,17,null,"11º",null,null,null,null,null,null,"11º","FIEL","ALAN","PETRÓPOLIS",58,null,null,"11º","VENENO","GILSON/GUSTAVO","S. DUMONT/TRÊS RIOS",79,17]
["12º",null,null,null,null,null,null,"12º",null,null,null,null,null,null,"12º","ITACHI","IVERSON","TRÊS RIOS",46,null,null,"12º","ESTRELA","JOSÉ","TRÊS RIOS",78,16]
["13º",null,null,null,null,null,null,"13º",null,null,null,null,null,null,"13º",null,null,null,null,null,null,"13º","SNIPER","GILSON/GUSTAVO","S. DUMONT/TRÊS RIOS",71,15]
["14º",null,null,null,null,null,null,"14º",null,null,null,null,null,null,"14º",null,null,null,null,null,null,"14º","RAMBO","JHONATAS","PARAÍBA DO SUL",66,14]
["15º",null,null,null,null,null,null,"15º",null,null,null,null,null,null,"15º",null,null,null,null,null,null,"15º","VISGO","KAUAN","PATY DO ALFERES",65,13]
["16º",null,null,null,null,null,null,"16º",null,null,null,null,null,null,"16º",null,null,null,null,null,null,"16º","REPETIDOR","GILSON/GUSTAVO","S. DUMONT/TRÊS RIOS",59]
["17º",null,null,null,null,null,null,"17º",null,null,null,null,null,null,"17º",null,null,null,null,null,null,"17º","TALENTO","LOIRINHO","PARAÍBA DO SUL",58]
["18º",null,null,null,null,null,null,"18º",null,null,null,null,null,null,"18º",null,null,null,null,null,null,"18º"]
["19º",null,null,null,null,null,null,"19º",null,null,null,null,null,null,"19º",null,null,null,null,null,null,"19º"]
["20º",null,null,null,null,null,null,"20º",null,null,null,null,null,null,"20º",null,null,null,null,null,null,"20º"]

{"sheet":"set2025","index":2,"n_rows":27,"n_cols":27,"rows_kept":27,"cut":false,"hidden":false,"merged":[[0,0,0,5],[0,7,0,12],[0,14,0,19],[0,21,0,26]]}
["03/09/2025 (QUARTA-FEIRA)",null,null,null,null,null,null,"10/09/2025 (QUARTA-FEIRA)",null,null,null,null,null,null,"17/09/2025 (QUARTA-FEIRA)",null,null,null,null,null,null,"24/09/2025 (QUARTA-FEIRA)"]
["POS.","PÁSSARO","PROPRIETÁRIO","ORIGEM","CANTOS","PONTOS",null,"POS.","PÁSSARO","PROPRIETÁRIO","ORIGEM","CANTOS","PONTOS",null,"POS.","PÁSSARO","PROPRIETÁRIO","ORIGEM","CANTOS","PONTOS",null,"POS.","PÁSSARO","PROPRIETÁRIO","ORIGEM","CANTOS","PONTOS"]
["1º","ULTRAGAS","GABRIEL","MAR DE ESPANHA",168,30,null,"1º","ZEUS","RATINHO","VALENÇA",136,30,null,"1º","ASTRO","ALEXANDRE/ANA CARLA","SOUZA AGUIAR",150,30,null,"1º","ZEUS","RATINHO","VALENÇA",155,30]
["2º","MARRETA","GUSTAVO/GILSON","TRÊS RIOS/S. DUMONT",143,28,null,"2º","CATEDRAL","GUSTAVO/GILSON","TRÊS RIOS/S. DUMONT",128,28,null,"2º","PRECIOSO","FAMÍLIA HONORATO","PARAÍBA DO SUL",129,28,null,"2º","MAITOGAI","EDILSON PAVÃO","PETRÓPOLIS",151,28]
["3º","KRATOS","RICARDO/GUSTAVINHO/KAUE","ANTA",129,26,null,"3º","TOBEBIM","NILTON GUGU","BEMPOSTA",122,26,null,"3º","CATEDRAL","SOLDADO","NOVA IGUAÇU",122,26,null,"3º","NOVATO","LUCIMAR/LUIZ HENRIQUE","TRÊS RIOS",132,26]
["4º","MULEKE","LEONARDO","PETRÓPOLIS",116,24,null,"4º","MARRETA","GUSTAVO/GILSON","TRÊS RIOS/S. DUMONT",114,24,null,"4º","MARRETA","GUSTAVO/GILSON","TRÊS RIOS",119,24,null,"4º","PORCO","RODRIGO/BRUNO","PETRÓPOLIS",125,24]
["5º","VELOSTER","HENRIQUE","ANTA",113,23,null,"5º","GUERREIRO","CH FAMÍLIA MINGAL","PARAÍBA DO SUL",112,23,null,"5º","VELOSTER","HENRIQUE","ANTA",115,23,null,"5º","VELOSTER","HENRIQUE","ANTA",121,23]
["6º","ASTRO","KAUAN","PATY DO ALFERES",102,22,null,"6º","NOVATO","LUCIMAR/LUIZ HENRIQUE","TRÊS RIOS",109,22,null,"6º","DINO","AMILTON","JUIZ DE FORA",113,22,null,"6º","MARRETA","GUSTAVO/GILSON","S. DO DESERTO/TRÊS RIOS",119,22]
["7º","MAD MAX JR","LEANDRO MOURA","TRÊS RIOS",94,21,null,"7º","TADALAFILA","FELIPE CRECK","MIGUEL PEREIRA",106,21,null,"7º","POPAYE","GUSTAVO/GILSON","TRÊS RIOS",108,21,null,"7º","POPEY","GILSON/GUSTAVO","S. DO DESERTO/TRÊS RIOS",117,21]
["8º","JOHN WICK","IVERSON","TRÊS RIOS",94,20,null,"8º","SUSSURRO","DOMINGOS/LOIRIN","PARAÍBA DO SUL",103,20,null,"8º","SUPER","RODRIGO","PETRÓPOLIS",105,20,null,"8º","CATEDRAL","GUSTAVO/GILSON","S. DO DESERTO/TRÊS RIOS",117,20]
["9º","GUERREIRO","CH FAMÍLIA MINGAL","PARAÍBA DO SUL",90,19,null,"9º","SUPER","RODRIGO","PETRÓPOLIS",101,19,null,"9º","DIFERENTE","SANDRINHO","TRÊS RIOS",97,19,null,"9º","SEXTA-FEIRA","GILBERT","JUIZ DE FORA",107,19]
["10º","BOPE","GILSON/GUSTAVO","S. DUMONT/TRÊS RIOS",83,18,null,"10º","MAD MAX JR","LEANDRO MOURA","TRÊS RIOS",93,18,null,"10º","ITACHI","IVERSON","TRÊS RIOS",90,18,null,"10º","OURO BRANCO","FELIPE","TRÊS RIOS",97,18]
["11º","CYCLOPE","RENATO","JUIZ DE FORA",83,17,null,"11º","SHITAI","GABRIEL/EDILSON","PETRÓPOLIS",91,17,null,"11º","RAIO","LUCIMAR /LUIZ HENRIQUE","TRÊS RIOS",88,17,null,"11º","JUMBO","ALEXANDRE","JUIZ DE FORA",87,17]
["12º","SUPER","RODRIGO","PETRÓPOLIS",77,16,null,"12º","MATADOR","ANDRÉ","PARAÍBA DO SUL",91,16,null,"12º","ET","MUTUM","JUIZ DE FORA",86,16,null,"12º","DIFERENTE","SANDRINHO","TRÊS RIOS",76,16]
["13º","FURIA","KAUAN","PATY DO ALFERES",73,15,null,"13º","VELOSTER","HENRIQUE","ANTA",90,15,null,"13º","ZAP ZAP","HERLO","PARAÍBA DO SUL",67,15,null,"13º","GUERREIRO","CH GUERREIRO","TRÊS RIOS",75,15]
["14º","VENENO","GILSON/GUSTAVO","S. DUMONT/TRÊS RIOS",71,14,null,"14º","ZAP ZAP","HERLO","PARAÍBA DO SUL",85,14,null,"14º","JHON WICK","IVERSON","TRÊS RIOS",63,14,null,"14º","WOLVERINE","MURILO","TRÊS RIOS",68,14]
["15º","JOIA RARA","RODRIGO/BRUNO","PETRÓPOLIS",71,13,null,"15º","VENENO","GUSTAVO/GILSON","TRÊS RIOS/S. DUMONT",83,13,null,"15º",null,null,null,null,null,null,"15º","SINISTRO","ALEXANDRE","JUIZ DE FORA",34]
["16º","MAJESTOSO","LOIRIN","PARAÍBA DO SUL",67,null,null,"16º","MANDRAKE","CLAUDIO DUARTE","MIGUEL PEREIRA",82,null,null,"16º",null,null,null,null,null,null,"16º"]
["17º","MINOTAURO","VINÍCIUS SATYRO","PETRÓPOLIS",67,null,null,"17º","DIFERENTE","SANDRINHO","TRÊS RIOS",70,null,null,"17º",null,null,null,null,null,null,"17º"]
["18º","TOP","FAMÍLIA MINGAL","PARAÍBA DO SUL",66,null,null,"18º","GALO BRANCO","GUSTAVO/GILSON","TRÊS RIOS/S. DUMONT",69,null,null,"18º",null,null,null,null,null,null,"18º"]
["19º",null,null,null,null,null,null,"19º","WOLVERINE","MURILO","TRÊS RIOS",67,null,null,"19º",null,null,null,null,null,null,"19º"]
["20º",null,null,null,null,null,null,"20º","ABENÇOADO","SANDRO","ANTA",66,null,null,"20º",null,null,null,null,null,null,"20º"]
["21º",null,null,null,null,null,null,"21º","TALENTO","LOIRIN","PARAÍBA DO SUL",59,null,null,"21º",null,null,null,null,null,null,"21º"]
["22º",null,null,null,null,null,null,"22º","XARÁ","NILTON GUGU","BEMPOSTA",40,null,null,"22º",null,null,null,null,null,null,"22º"]
["23º",null,null,null,null,null,null,"23º",null,null,null,null,null,null,"23º",null,null,null,null,null,null,"23º"]
["24º",null,null,null,null,null,null,"24º",null,null,null,null,null,null,"24º",null,null,null,null,null,null,"24º"]
["25º",null,null,null,null,null,null,"25º",null,null,null,null,null,null,"25º",null,null,null,null,null,null,"25º"]

{"sheet":"out2025","index":3,"n_rows":42,"n_cols":34,"rows_kept":42,"cut":false,"hidden":false,"merged":[[0,0,0,5],[0,7,0,12],[0,14,0,19],[0,21,0,26],[0,28,0,33]]}
["01/10/2025 (QUARTA-FEIRA)",null,null,null,null,null,null,"08/10/2025 (QUARTA-FEIRA)",null,null,null,null,null,null,"15/10/2025 (QUARTA-FEIRA)",null,null,null,null,null,null,"22/10/2025 (QUARTA-FEIRA)",null,null,null,null,null,null,"29/10/2025 (QUARTA-FEIRA)"]
["POS.","PÁSSARO","PROPRIETÁRIO","ORIGEM","CANTOS","PONTOS",null,"POS.","PÁSSARO","PROPRIETÁRIO","ORIGEM","CANTOS","PONTOS",null,"POS.","PÁSSARO","PROPRIETÁRIO","ORIGEM","CANTOS","PONTOS",null,"POS.","PÁSSARO","PROPRIETÁRIO","ORIGEM","CANTOS","PONTOS",null,"POS.","PÁSSARO","PROPRIETÁRIO","ORIGEM","CANTOS","PONTOS"]
["1º","TOBEBIM","NILTON GUGU","BEMPOSTA",150,30,null,"1º","TOP","FAMÍLIA MINGAL","PARAÍBA DO SUL",135,30,null,"1º","ABSOLUTO","SOLDADO","NOVA IGUAÇU",150,30,null,"1º","MATRAQUINHA","RAFAEL","PARAÍBA DO SUL",156,30,null,"1º","TEIMOSO","KAUAN","PATY DO ALFERES",149,30]
["2º","POPAYE","GILSON/GUSTAVO","TRÊS RIOS/S. DUMONT",142,28,null,"2º","MARRETA","GUSTAVO/GILSON","TRÊS RIOS/S. DUMONT",134,28,null,"2º","LEKE","GUSTAVO","PARAÍBA DO SUL",129,28,null,"2º","SUZUKI","CT ALPHA","PARAÍBA DO SUL",152,28,null,"2º","397","SÍLVIO LEAL","PETRÓPOLIS",130,28]
["3º","VELOSTER","HENRIQUE","ANTA",125,26,null,"3º","ZEUS","RATINHO","VALENÇA",131,26,null,"3º","TIROTEIO","DOUGLAS/CABRITO","JUIZ DE FORA/M. BARBOSA",127,26,null,"3º","ALBATROZ","GABRIEL","MAR DE ESPANHA",121,26,null,"3º","MARRETA","GILSON/GUSTAVO","TRÊS RIOS/S. DUMONT",129,26]
["4º","TOP","FAMÍLIA MINGAL","PARAÍBA DO SUL",116,24,null,"4º","TIROTEIO","DOUGLAS/CABRITO","JUIZ DE FORA",130,24,null,"4º","GAVIÃO","JOSÉ PAULO","PARAÍBA DO SUL",120,24,null,"4º","GENGHIS KHAN","PABLO","ITAIPAVA",121,24,null,"4º","PERON","LEVI","TRÊS RIOS",114,24]
["5º","MARRETA","GUSTAVO/GILSON","TRÊS RIOS/S. DUMONT",116,23,null,"5º","VELOSTER","HENRIQUE","ANTA",119,23,null,"5º","SHOW DO MILHÃO","KAUAN","PATY DO ALFERES",115,23,null,"5º","ZAP ZAP","HERLO","PARAÍBA DO SUL",117,23,null,"5º","METEORO","HARLEI","TRÊS RIOS",114,23]
["6º","SHOW DO MILHÃO","KAUAN","PATY DO ALFERES",114,22,null,"6º","SHOW DO MILHÃO","KAUAN","PATY DO ALFERES",118,22,null,"6º","ZAP ZAP","HERLO","PARAÍBA DO SUL",111,22,null,"6º","ABSOLUTO","SOLDADO","NOVA IGUAÇU",111,22,null,"6º","KI SHOW","RODRIGO/RAFAEL","PETRÓPOLIS",111,22]
["7º","ZAP ZAP","HERLO","PARAÍBA DO SUL",113,21,null,"7º","TOBEBIM","NILTON GUGU","BEMPOSTA",118,21,null,"7º","YRON","NICOLAS","PETRÓPOLIS",110,21,null,"7º","TIROTEIO","DOUGLAS/CABRITO","JUIZ DE FORA/M. BARBOSA",110,21,null,"7º","ABSOLUTO","SOLDADO","NOVA IGUAÇU",105,21]
["8º","SINISTRO","ALEXANDRE","JUIZ DE FORA",109,20,null,"8º","BRUTO","RUAN BARRINHA","PARAÍBA DO SUL",107,20,null,"8º","VELOSTER","HENRIQUE","ANTA",105,20,null,"8º","VELOSTER","HENRIQUE","ANTA",110,20,null,"8º","POPAYE","GILSON/GUSTAVO","TRÊS RIOS/S. DUMONT",103,20]
["9º","GAVIÃO","JOSÉ PAULO","PARAÍBA DO SUL",105,19,null,"9º","ZÉ CALANGO","RAFAEL TAVARES","PETRÓPOLIS",100,19,null,"9º","BOI","FAMÍLIA MINGAL","PARAÍBA DO SUL",104,19,null,"9º","FORASTEIRO","KLEBER","AREAL",110,19,null,"9º","GENGHIS KHAN","PABLO","ITAIPAVA",98,19]
["10º","FINAL FELIZ","WELINGTON","PETRÓPOLIS",102,18,null,"10º","SINISTRO","ALEXANDRE","JUIZ DE FORA",82,18,null,"10º","SUB ZERO","ANDRÉ","PARAÍBA DO SUL",100,18,null,"10º","TRUCO","IGOR LIMA","TRÊS RIOS",108,18,null,"10º","ZAP ZAP","HERLO","PARAÍBA DO SUL",98,18]
["11º","BIPOLAR","LUIZ CARLOS","MIGUEL PEREIRA",100,17,null,"11º","JUMBO","ALEXANDRE","JUIZ DE FORA",80,17,null,"11º","MARRETA","GUSTAVO/GILSON","TRÊS RIOS/S. DUMONT",99,17,null,"11º","MARRETA","GILSON/GUSTAVO","TRÊS RIOS/S. DUMONT",104,17,null,"11º","FIEL","JÚLIO/MATHEUS","PARAÍBA DO SUL",90,17]
["12º","ZANGADO","WELINGTON","PETRÓPOLIS",100,16,null,"12º","ZÉ PORRADA","DENTINHO","PARAÍBA DO SUL",48,16,null,"12º","PIVETE","SOLDADO","NOVA IGUAÇU",98,16,null,"12º","CONFUSÃO","CICINHO","PARAÍBA DO SUL",97,16,null,"12º","BRUTO","RUAN","PARAÍBA DO SUL",76,16]
["13º","DOPAMINA","RAPHAEL","MATIAS BARBOSA",86,15,null,"13º",null,null,null,null,null,null,"13º","POPAYE","GILSON/GUSTAVO","TRÊS RIOS/S. DUMONT",84,15,null,"13º","CANGACEIRO","GABRIEL","PETRÓPOLIS",88,15,null,"13º","DIFERENTE","SANDRINHO","TRÊS RIOS",70,15]
["14º",null,null,null,null,null,null,"14º",null,null,null,null,null,null,"14º","CANGACEIRO","GABRIEL","PETRÓPOLIS",81,14,null,"14º","CABULOSO","WATILA","JUIZ DE FORA",85,14,null,"14º","MALIBU","PABLO","ITAIPAVA",69,14]
["15º",null,null,null,null,null,null,"15º",null,null,null,null,null,null,"15º","DIFERENTE","SANDRINHO","TRÊS RIOS",67,13,null,"15º","FIEL","MATHEUS/JÚLIO","PARAÍBA DO SUL",81,13,null,"15º","VELOSTER","HENRIQUE","ANTA",67,13]
["16º",null,null,null,null,null,null,"16º",null,null,null,null,null,null,"16º","SUPER BOY","EDU","TRÊS RIOS",50,null,null,"16º","EXTINTOR","JOÃO MARCOS","AREAL",79,null,null,"16º"]
["17º",null,null,null,null,null,null,"17º",null,null,null,null,null,null,"17º",null,null,null,null,null,null,"17º","ZEUS","HENRIQUE","ANTA",77,null,null,"17º"]
["18º",null,null,null,null,null,null,"18º",null,null,null,null,null,null,"18º",null,null,null,null,null,null,"18º",null,null,null,null,null,null,"18º"]
["19º",null,null,null,null,null,null,"19º",null,null,null,null,null,null,"19º",null,null,null,null,null,null,"19º",null,null,null,null,null,null,"19º"]
["20º",null,null,null,null,null,null,"20º",null,null,null,null,null,null,"20º",null,null,null,null,null,null,"20º",null,null,null,null,null,null,"20º"]
["21º",null,null,null,null,null,null,"21º",null,null,null,null,null,null,"21º",null,null,null,null,null,null,"21º",null,null,null,null,null,null,"21º"]
["22º",null,null,null,null,null,null,"22º",null,null,null,null,null,null,"22º",null,null,null,null,null,null,"22º",null,null,null,null,null,null,"22º"]
["23º",null,null,null,null,null,null,"23º",null,null,null,null,null,null,"23º",null,null,null,null,null,null,"23º",null,null,null,null,null,null,"23º"]
["24º",null,null,null,null,null,null,"24º",null,null,null,null,null,null,"24º",null,null,null,null,null,null,"24º",null,null,null,null,null,null,"24º"]
["25º",null,null,null,null,null,null,"25º",null,null,null,null,null,null,"25º",null,null,null,null,null,null,"25º",null,null,null,null,null,null,"25º"]
["26º",null,null,null,null,null,null,"26º",null,null,null,null,null,null,"26º",null,null,null,null,null,null,"26º",null,null,null,null,null,null,"26º"]
["27º",null,null,null,null,null,null,"27º",null,null,null,null,null,null,"27º",null,null,null,null,null,null,"27º",null,null,null,null,null,null,"27º"]
["28º",null,null,null,null,null,null,"28º",null,null,null,null,null,null,"28º",null,null,null,null,null,null,"28º",null,null,null,null,null,null,"28º"]
["29º",null,null,null,null,null,null,"29º",null,null,null,null,null,null,"29º",null,null,null,null,null,null,"29º",null,null,null,null,null,null,"29º"]
["30º",null,null,null,null,null,null,"30º",null,null,null,null,null,null,"30º",null,null,null,null,null,null,"30º",null,null,null,null,null,null,"30º"]
["31º",null,null,null,null,null,null,"31º",null,null,null,null,null,null,"31º",null,null,null,null,null,null,"31º",null,null,null,null,null,null,"31º"]
["32º",null,null,null,null,null,null,"32º",null,null,null,null,null,null,"32º",null,null,null,null,null,null,"32º",null,null,null,null,null,null,"32º"]
["33º",null,null,null,null,null,null,"33º",null,null,null,null,null,null,"33º",null,null,null,null,null,null,"33º",null,null,null,null,null,null,"33º"]
["34º",null,null,null,null,null,null,"34º",null,null,null,null,null,null,"34º",null,null,null,null,null,null,"34º",null,null,null,null,null,null,"34º"]
["35º",null,null,null,null,null,null,"35º",null,null,null,null,null,null,"35º",null,null,null,null,null,null,"35º",null,null,null,null,null,null,"35º"]
["36º",null,null,null,null,null,null,"36º",null,null,null,null,null,null,"36º",null,null,null,null,null,null,"36º",null,null,null,null,null,null,"36º"]
["37º",null,null,null,null,null,null,"37º",null,null,null,null,null,null,"37º",null,null,null,null,null,null,"37º",null,null,null,null,null,null,"37º"]
["38º",null,null,null,null,null,null,"38º",null,null,null,null,null,null,"38º",null,null,null,null,null,null,"38º",null,null,null,null,null,null,"38º"]
["39º",null,null,null,null,null,null,"39º",null,null,null,null,null,null,"39º",null,null,null,null,null,null,"39º",null,null,null,null,null,null,"39º"]
["40º",null,null,null,null,null,null,"40º",null,null,null,null,null,null,"40º",null,null,null,null,null,null,"40º",null,null,null,null,null,null,"40º"]